bitfinex-derivatives/quotes_BTCF0:USTF0_20250918
["timestamp","ask_amount","ask_price","bid_price","bid_amount"]
[1758202465733,0.03663,117580.0,117570.0,1.20667252]
[1758202465934,0.03663,117580.0,117570.0,0.01399]
[1758202466139,0.43255252,117580.0,117570.0,0.01399]
[1758202466349,0.01495,117580.0,117570.0,0.81055]
[1758202466544,0.01495,117580.0,117570.0,1.20647252]
[1758202466748,0.00104,117580.0,117570.0,1.96319504]
[1758202467046,0.00104,117580.0,117570.0,2.21319504]
[1758202471252,0.00104,117580.0,117570.0,1.42087]
[1758202471441,0.01389,117580.0,117570.0,0.01399]
[1758202471752,0.64717,117580.0,117570.0,0.80999]
[1758202471945,0.28637,117580.0,117570.0,1.56671252]
[1758202472146,0.28637,117580.0,117570.0,0.40991252]
[1758202472549,0.28637,117580.0,117570.0,0.81015]
[1758202472853,0.28637,117580.0,117570.0,1.20607252]
[1758202473452,0.26389,117580.0,117570.0,1.56687252]
[1758202473751,0.28637,117580.0,117570.0,0.40991252]
[1758202473958,0.26389,117580.0,117570.0,1.56659252]
[1758202474252,0.00104,117580.0,117570.0,1.56659252]
[1758202474552,0.00104,117580.0,117570.0,1.17067]
[1758202474853,0.00104,117580.0,117570.0,1.56659252]
[1758202475845,0.01389,117580.0,117570.0,1.17043]
[1758202476053,0.01389,117580.0,117570.0,1.56635252]
[1758202476455,0.01389,117580.0,117570.0,1.17043]
[1758202476657,0.01389,117580.0,117570.0,1.56635252]
[1758202476847,0.01389,117580.0,117570.0,0.40991252]
[1758202477043,0.03637,117580.0,117570.0,0.80979]
[1758202477444,0.03637,117580.0,117570.0,1.56651252]
[1758202477848,0.01389,117580.0,117570.0,1.56651252]
[1758202479059,0.03637,117580.0,117570.0,1.20539252]
[1758202479261,0.01389,117580.0,117570.0,1.56619252]
[1758202479461,0.01389,117580.0,117570.0,1.20539252]
[1758202479660,0.01389,117580.0,117570.0,0.80923]
[1758202479961,0.01389,117580.0,117570.0,1.56595252]
[1758202480461,0.01389,117580.0,117570.0,1.20515252]
[1758202480862,0.03637,117580.0,117570.0,0.40991252]
[1758202481054,0.03637,117580.0,117570.0,1.20475252]
[1758202481753,0.01389,117580.0,117570.0,1.20475252]
[1758202483261,0.01389,117580.0,117570.0,1.56555252]
[1758202483665,0.00104,117580.0,117570.0,1.56555252]
[1758202484963,0.01389,117580.0,117570.0,1.56555252]
[1758202486259,0.01389,117580.0,117570.0,0.77071252]
[1758202486460,0.01389,117580.0,117570.0,0.40991252]
[1758202486764,0.03637,117580.0,117570.0,0.40991252]
[1758202486961,0.03637,117580.0,117570.0,1.20399252]
[1758202487462,0.01389,117580.0,117570.0,1.20399252]
[1758202487764,0.01389,117580.0,117570.0,1.56479252]
[1758202488459,0.00104,117580.0,117570.0,1.56479252]
[1758202488866,0.00104,117580.0,117570.0,1.96071504]
[1758202489070,0.00104,117580.0,117570.0,2.21071504]
[1758202490458,0.00104,117580.0,117570.0,1.89068858]
[1758202491157,0.00104,117580.0,117570.0,2.0366111]
[1758202491370,0.00104,117580.0,117570.0,2.21071504]
[1758202491866,0.00104,117580.0,117570.0,2.21267504]
[1758202493266,0.00104,117580.0,117570.0,2.21259504]
[1758202493568,0.00104,117580.0,117570.0,1.81667252]
[1758202493865,0.00104,117580.0,117570.0,1.02071252]
[1758202494068,0.01389,117580.0,117570.0,0.77071252]
[1758202494260,0.01389,117580.0,117570.0,1.56651252]
[1758202494456,0.03637,117580.0,117570.0,0.77071252]
[1758202494670,0.03637,117580.0,117570.0,0.40991252]
[1758202494970,0.03637,117580.0,117570.0,0.80991]
[1758202495763,0.03637,117580.0,117570.0,1.20583252]
[1758202496162,0.03637,117580.0,117570.0,0.80991]
[1758202496366,0.03637,117580.0,117570.0,1.20583252]
[1758202497769,0.45828829,117580.0,117570.0,1.23182829]
[1758202497966,0.00104,117580.0,117570.0,0.80991]
[1758202498163,0.00104,117580.0,117570.0,2.01454658]
[1758202498370,0.00104,117580.0,117570.0,2.09044264]
[1758202498667,4e-05,117580.0,117570.0,3.04236093]
[1758202498972,0.0001,117590.0,117570.0,2.26454658]
[1758202499168,0.0001,117590.0,117580.0,1.29303395]
[1758202499472,0.03481,117590.0,117580.0,2.01378658]
[1758202499866,0.03481,117590.0,117580.0,1.56550243]
[1758202500068,0.0131,117590.0,117580.0,1.17015]
[1758202500270,0.0131,117590.0,117580.0,1.56562243]
[1758202500466,0.03632,117590.0,117580.0,0.37319]
[1758202500672,0.28632,117590.0,117580.0,0.01239]
[1758202500876,1.04259243,117590.0,117580.0,0.01239]
[1758202501070,1.04259243,117590.0,117580.0,0.81379]
[1758202501267,1.04259243,117590.0,117580.0,0.01239]
[1758202501472,1.04459243,117590.0,117570.0,0.6283]
[1758202501775,0.03666,117580.0,117570.0,0.67536243]
[1758202501969,0.03666,117580.0,117570.0,1.47688243]
[1758202502272,0.03666,117580.0,117570.0,0.7513698]
[1758202502471,0.03666,117580.0,117570.0,1.08133]
[1758202502670,0.03666,117580.0,117570.0,0.27989]
[1758202502870,0.03666,117580.0,117570.0,1.08157]
[1758202503069,0.03666,117580.0,117570.0,0.81407]
[1758202503667,0.03666,117580.0,117570.0,1.17487]
[1758202504075,0.03666,117580.0,117570.0,1.25087737]
[1758202504266,0.03666,117580.0,117570.0,0.44919737]
[1758202504576,0.03666,117580.0,117570.0,0.89003737]
[1758202504869,0.03766,117580.0,117570.0,0.89003737]
[1758202505061,0.03766,117580.0,117570.0,1.28293721]
[1758202506266,0.001,117580.0,117570.0,1.64349721]
[1758202508977,0.001,117580.0,117570.0,1.64345912]
[1758202509378,0.001,117580.0,117570.0,1.56748984]
[1758202509674,0.001,117580.0,117570.0,1.64344826]
[1758202510268,0.01444,117580.0,117570.0,1.25054842]
[1758202510465,0.01444,117580.0,117570.0,1.64304826]
[1758202511369,0.001,117580.0,117570.0,1.64304826]
[1758202513378,0.001,117580.0,117570.0,1.25014842]
[1758202513580,0.001,117580.0,117570.0,1.56708984]
[1758202514075,0.001,117580.0,117570.0,1.97806107]
[1758202514279,0.001,117580.0,117570.0,1.89304317]
[1758202514684,0.001,117580.0,117570.0,1.50014333]
[1758202514887,0.001,117580.0,117570.0,2.16054317]
[1758202515074,0.001,117580.0,117570.0,2.24556107]
[1758202515881,0.001,117580.0,117570.0,2.16960774]
[1758202516179,0.01444,117580.0,117570.0,1.54758569]
[1758202516381,0.03766,117580.0,117570.0,0.35583239]
[1758202516576,0.03766,117580.0,117570.0,1.90961223]
[1758202516777,0.03766,117580.0,117570.0,1.10953223]
[1758202517076,0.03766,117580.0,117570.0,1.91001223]
[1758202517483,0.01444,117580.0,117570.0,1.91001223]
[1758202517872,0.01444,117580.0,117570.0,1.51711239]
[1758202518080,0.01444,117580.0,117570.0,1.91001223]
[1758202519278,0.001,117580.0,117570.0,1.91001223]
[1758202519984,0.001,117580.0,117570.0,1.83406984]
[1758202520476,0.001,117580.0,117570.0,2.16908794]
[1758202520678,0.001,117580.0,117570.0,2.47158794]
[1758202520883,0.001,117580.0,117570.0,1.90158794]
[1758202522681,0.001,117580.0,117570.0,1.5086881]
[1758202522985,0.001,117580.0,117570.0,1.90158794]
[1758202524081,0.001,117580.0,117570.0,1.97752188]
[1758202524781,0.001,117580.0,117570.0,2.72502188]
[1758202524984,0.0001,117590.0,117570.0,2.38158794]
[1758202525184,0.0001,117590.0,117580.0,0.37159]
[1758202525384,0.0101,117600.0,117580.0,1.57050984]
[1758202525681,0.0101,117600.0,117590.0,0.84036411]
[1758202525886,0.01,117600.0,117590.0,0.84036411]
[1758202526079,0.02344,117600.0,117590.0,1.56472984]
[1758202527081,0.01,117600.0,117590.0,1.56472984]
[1758202527279,0.01,117600.0,117590.0,1.64060411]
[1758202527681,0.01,117600.0,117590.0,0.84036411]
[1758202527889,0.01,117600.0,117590.0,1.64008411]
[1758202528087,0.012,117600.0,117590.0,1.64008411]
[1758202529386,0.012,117600.0,117590.0,1.57257408]
[1758202530886,0.012,117600.0,117590.0,2.27345215]
[1758202531090,0.012,117600.0,117590.0,2.19757788]
[1758202531588,0.011,117600.0,117590.0,2.27335699]
[1758202531787,0.011,117600.0,117590.0,2.38157268]
[1758202531986,0.011,117600.0,117590.0,2.38157403]
[1758202532185,0.011,117600.0,117590.0,2.27495834]
[1758202533495,0.011,117600.0,117590.0,1.8820585]
[1758202533684,0.011,117600.0,117590.0,1.47363834]
[1758202533994,0.011,117600.0,117590.0,1.4464947]
[1758202534190,0.011,117600.0,117590.0,1.83931454]
[1758202534487,0.011,117600.0,117590.0,1.03863454]
[1758202534696,0.011,117600.0,117590.0,0.6457347]
[1758202534990,0.011,117600.0,117590.0,1.03863454]
[1758202535489,0.011,117600.0,117590.0,1.83947454]
[1758202535886,0.011,117600.0,117590.0,1.03863454]
[1758202536091,0.011,117600.0,117590.0,1.83939454]
[1758202536291,0.011,117600.0,117590.0,1.03863454]
[1758202536491,0.011,117600.0,117590.0,1.83935454]
[1758202536692,0.02488,117600.0,117590.0,0.63737046]
[1758202536887,0.02488,117600.0,117590.0,1.17215]
[1758202537192,0.02488,117600.0,117590.0,1.56504984]
[1758202537389,0.29799,117600.0,117590.0,0.81131]
[1758202537587,0.29799,117600.0,117590.0,0.81143]
[1758202537784,0.29799,117600.0,117590.0,0.01079]
[1758202537991,0.69088984,117600.0,117590.0,0.81151]
[1758202538191,1.05168984,117600.0,117590.0,0.01079]
[1758202538387,0.01388,117590.0,117580.0,0.01079]
[1758202538590,0.79068984,117590.0,117580.0,0.81171]
[1758202538984,0.40630913,117590.0,117580.0,0.81171]
[1758202539184,0.03699,117590.0,117580.0,0.81171]
[1758202539691,0.03699,117590.0,117580.0,1.20460984]
[1758202539894,0.01388,117590.0,117580.0,1.20512984]
[1758202540204,0.38478,117600.0,117580.0,1.21186984]
[1758202540602,0.02398,117600.0,117580.0,1.57266984]
[1758202541098,0.02398,117600.0,117580.0,1.56592984]
[1758202541289,0.01388,117590.0,117580.0,1.56592984]
[1758202541485,0.01388,117590.0,117580.0,1.17303]
[1758202541686,0.02398,117600.0,117580.0,1.56592984]
[1758202541900,0.02498,117600.0,117580.0,0.76448984]
[1758202542099,0.03699,117590.0,117580.0,0.01079]
[1758202542491,0.03699,117590.0,117580.0,0.81199]
[1758202544100,0.64779,117590.0,117580.0,0.81187]
[1758202545703,0.28699,117590.0,117580.0,0.81187]
[1758202546101,1.04068984,117590.0,117580.0,0.81151]
[1758202546301,0.01388,117580.0,117570.0,1.61251242]
[1758202546598,0.01388,117580.0,117570.0,2.48909288]
[1758202547104,0.03709,117590.0,117580.0,0.01079]
[1758202547403,0.03699,117590.0,117580.0,0.40368984]
[1758202547701,0.03699,117590.0,117580.0,0.76448984]
[1758202550104,0.02398,117600.0,117580.0,0.76448984]
[1758202550398,0.0101,117600.0,117590.0,1.55401984]
[1758202550602,0.01,117600.0,117590.0,1.55401984]
[1758202551598,0.01,117600.0,117590.0,1.63902374]
[1758202552003,0.01,117600.0,117590.0,1.55401984]
[1758202552308,0.01,117600.0,117590.0,1.66063553]
[1758202552997,0.011,117600.0,117590.0,1.66063553]
[1758202553310,0.011,117600.0,117590.0,1.62977936]
[1758202553598,0.011,117600.0,117590.0,1.23687952]
[1758202553907,0.011,117600.0,117590.0,1.87977936]
[1758202554094,0.011,117600.0,117590.0,1.07945936]
[1758202554291,0.011,117600.0,117590.0,1.87981936]
[1758202554998,0.011,117600.0,117590.0,0.69734952]
[1758202555199,0.011,117600.0,117590.0,1.89032936]
[1758202555504,0.011,117600.0,117590.0,1.81448984]
[1758202556299,0.011,117600.0,117590.0,0.62159]
[1758202556498,0.011,117600.0,117590.0,1.01448984]
[1758202556803,0.011,117600.0,117590.0,1.81432984]
[1758202558292,0.011,117600.0,117590.0,1.01448984]
[1758202558500,0.011,117600.0,117590.0,1.81412984]
[1758202558703,0.011,117600.0,117590.0,1.01448984]
[1758202558914,0.011,117600.0,117590.0,1.81396984]
[1758202559101,0.011,117600.0,117590.0,1.81388984]
[1758202560209,0.011,117600.0,117590.0,1.01448984]
[1758202560505,0.65795,117600.0,117590.0,0.81015]
[1758202560707,1.05084984,117600.0,117590.0,0.01079]
[1758202560902,0.03615,117590.0,117570.0,0.75614521]
[1758202561097,0.03615,117580.0,117570.0,0.19316521]
[1758202561301,0.03615,117580.0,117570.0,1.63980936]
[1758202561506,0.01388,117590.0,117570.0,1.63980936]
[1758202561807,0.03625,117590.0,117580.0,1.20320984]
[1758202562106,0.01378,117590.0,117580.0,1.20320984]
[1758202562407,0.38468,117600.0,117580.0,1.20320984]
[1758202562801,0.02388,117600.0,117580.0,1.56400984]
[1758202563003,0.0101,117600.0,117590.0,0.76448984]
[1758202563204,0.01,117600.0,117590.0,0.76448984]
[1758202563504,0.01,117600.0,117590.0,0.84024936]
[1758202563812,0.01,117600.0,117590.0,1.29069428]
[1758202564311,0.01,117600.0,117590.0,1.37569828]
[1758202564609,0.01,117600.0,117590.0,1.62568559]
[1758202564809,0.01,117600.0,117590.0,1.54993876]
[1758202565008,0.01,117600.0,117590.0,1.62567926]
[1758202565508,0.011,117600.0,117590.0,1.62567926]
[1758202565805,0.011,117600.0,117590.0,1.4970748]
[1758202566003,0.011,117600.0,117590.0,1.57279986]
[1758202566705,0.011,117600.0,117590.0,1.4120708]
[1758202566905,0.011,117600.0,117590.0,1.4970748]
[1758202568207,0.50270244,117640.0,117590.0,1.4970748]
[1758202568208,0.39168374,117640.0,117630.0,0.01508]
[1758202568409,0.01700374,117640.0,117630.0,1.1757808]
[1758202568610,0.01378,117640.0,117630.0,1.5795404]
[1758202568912,0.28615,117640.0,117630.0,0.01508]
[1758202569402,0.29015,117640.0,117630.0,1.2092404]
[1758202569598,0.6853904,117640.0,117630.0,0.81392]
[1758202569805,0.01378,117630.0,117620.0,0.03528307]
[1758202569997,0.03615,117630.0,117620.0,0.13518307]
[1758202570402,0.03615,117630.0,117620.0,0.83386307]
[1758202570602,0.03615,117630.0,117620.0,1.22910347]
[1758202570803,0.03615,117630.0,117620.0,0.43042347]
[1758202571006,0.03615,117630.0,117620.0,1.22894347]
[1758202571507,0.03615,117630.0,117620.0,0.83370307]
[1758202571706,0.03615,117630.0,117620.0,1.58974347]
[1758202572608,0.001,117630.0,117620.0,1.58974347]
[1758202573210,0.01478,117630.0,117620.0,1.58966347]
[1758202573612,0.001,117630.0,117620.0,1.58966347]
[1758202574115,0.001,117630.0,117620.0,1.19442307]
[1758202574414,0.01478,117630.0,117620.0,1.58966347]
[1758202574619,0.01478,117630.0,117620.0,1.58962347]
[1758202574910,0.001,117630.0,117620.0,1.58986347]
[1758202575216,0.03715,117630.0,117620.0,0.43042347]
[1758202575414,0.03715,117630.0,117620.0,1.22886347]
[1758202575812,0.03715,117630.0,117620.0,1.58966347]
[1758202576508,0.01478,117630.0,117620.0,1.58966347]
[1758202576913,0.001,117630.0,117620.0,1.58966347]
[1758202578512,0.001,117630.0,117620.0,1.58978347]
[1758202578708,0.001,117630.0,117620.0,2.32000647]
[1758202579310,0.0234,117660.0,117650.0,0.01348]
[1758202579508,0.01963594,117660.0,117650.0,1.9287604]
[1758202580014,0.01963594,117660.0,117650.0,1.1303204]
[1758202580219,0.01963594,117660.0,117650.0,1.5334]
[1758202580717,0.01963594,117660.0,117650.0,0.73508]
[1758202580919,0.01963594,117660.0,117650.0,1.53368]
[1758202581719,0.01963594,117660.0,117650.0,1.53392]
[1758202581911,0.05578594,117660.0,117650.0,0.7695204]
[1758202582110,0.30578594,117660.0,117650.0,0.7695204]
[1758202582310,0.30678594,117660.0,117650.0,1.5682404]
[1758202582724,0.30678594,117660.0,117650.0,0.7695204]
[1758202582911,0.30678594,117660.0,117650.0,1.5684404]
[1758202583213,0.30578594,117660.0,117650.0,1.5714404]
[1758202583519,0.30578594,117660.0,117650.0,0.4117204]
[1758202583720,0.30578594,117660.0,117650.0,1.2104004]
[1758202584912,0.05578594,117660.0,117650.0,1.2104004]
[1758202586020,0.05578594,117660.0,117650.0,0.80128]
[1758202586021,0.70102634,117660.0,117650.0,0.80128]
[1758202586322,0.30578594,117660.0,117650.0,1.2100004]
[1758202586914,0.30578594,117660.0,117650.0,1.2099604]
[1758202587112,0.66658594,117660.0,117650.0,1.2099604]
[1758202587419,0.66658594,117660.0,117650.0,1.2079604]
[1758202587618,0.30578594,117660.0,117650.0,1.2079604]
[1758202587818,0.30578594,117660.0,117650.0,1.23407614]
[1758202588032,0.30578594,117660.0,117650.0,0.43583614]
[1758202588217,0.72714208,117660.0,117650.0,1.23359614]
[1758202588418,0.30578594,117660.0,117650.0,1.23359614]
[1758202588814,0.30578594,117660.0,117650.0,0.81224]
[1758202589021,0.30578594,117660.0,117650.0,1.23359614]
[1758202589319,1.50929822,117660.0,117650.0,0.001]
[1758202589727,1.50929822,117660.0,117650.0,0.7984]
[1758202589919,1.50929822,117660.0,117650.0,0.001]
[1758202590721,1.50929822,117660.0,117650.0,0.01448]
[1758202590922,1.50929822,117660.0,117650.0,0.001]
[1758202592027,0.41658594,117660.0,117650.0,0.43583614]
[1758202592217,0.41658594,117660.0,117650.0,0.01448]
[1758202592218,0.05578594,117660.0,117650.0,0.01448]
[1758202592417,0.05578594,117660.0,117650.0,0.85719228]
[1758202592712,0.03341594,117660.0,117650.0,0.79663614]
[1758202593019,0.03341594,117660.0,117650.0,0.43583614]
[1758202593020,0.05563594,117660.0,117650.0,0.43583614]
[1758202593213,0.05563594,117660.0,117650.0,0.01448]
[1758202593419,0.05563594,117660.0,117650.0,0.43583614]
[1758202593827,0.03341594,117660.0,117650.0,0.85719228]
[1758202594014,0.01963594,117660.0,117650.0,1.21799228]
[1758202594220,0.01963594,117660.0,117650.0,1.55295348]
[1758202594624,0.01963594,117660.0,117650.0,1.97430962]
[1758202595016,0.01963594,117660.0,117650.0,2.050004]
[1758202595217,0.01963594,117660.0,117650.0,1.55295348]
[1758202595521,0.0001,117670.0,117650.0,2.847364]
[1758202595724,0.0001,117670.0,117660.0,1.24880982]
[1758202595925,0.00014,117680.0,117660.0,1.24880982]
[1758202596218,0.00014,117680.0,117670.0,1.56662776]
[1758202596435,4e-05,117680.0,117670.0,1.4867871]
[1758202596616,0.0001,117690.0,117680.0,0.1067298]
[1758202596818,0.0001,117700.0,117680.0,1.25710532]
[1758202597021,0.01365,117710.0,117700.0,0.01331]
[1758202597222,0.01365,117720.0,117700.0,0.01331]
[1758202597223,0.01365,117720.0,117700.0,1.17367]
[1758202597518,4e-05,117730.0,117720.0,0.02153]
[1758202597722,0.03591,117730.0,117720.0,1.20839776]
[1758202597926,0.03591,117730.0,117720.0,0.01325]
[1758202598122,0.03591,117730.0,117710.0,0.76893776]
[1758202598123,0.03587,117720.0,117710.0,0.76893776]
[1758202598322,0.03587,117720.0,117710.0,1.56975776]
[1758202598514,0.03587,117720.0,117710.0,1.20935776]
[1758202598926,0.39667,117720.0,117710.0,0.81481]
[1758202599123,0.64667,117720.0,117710.0,0.01325]
[1758202599314,0.01365,117710.0,117700.0,1.59154]
[1758202599622,0.03587,117700.0,117690.0,0.01335]
[1758202599818,0.39667,117700.0,117690.0,0.81505]
[1758202600019,0.39667,117700.0,117690.0,0.01325]
[1758202600221,0.03587,117690.0,117680.0,0.03350716]
[1758202600427,0.39667,117690.0,117680.0,1.22987492]
[1758202600923,0.79145776,117690.0,117680.0,0.03340716]
[1758202601125,0.79145776,117690.0,117680.0,0.83492716]
[1758202601421,0.39667,117690.0,117680.0,1.22971492]
[1758202601621,0.01365,117700.0,117680.0,1.19572716]
[1758202601923,0.39667,117700.0,117690.0,0.40803776]
[1758202602124,0.39667,117700.0,117690.0,0.01325]
[1758202602427,0.03587,117690.0,117680.0,0.03350716]
[1758202602627,0.39667,117690.0,117680.0,0.42819492]
[1758202602822,0.37445,117700.0,117680.0,1.59155492]
[1758202603023,0.39667,117700.0,117690.0,0.40803776]
[1758202603526,0.39767,117700.0,117690.0,0.40803776]
[1758202603827,0.39767,117700.0,117690.0,0.01325]
[1758202604126,0.03687,117700.0,117690.0,0.40803776]
[1758202604324,0.39767,117700.0,117690.0,0.40803776]
[1758202604817,0.01465,117700.0,117690.0,0.80282552]
[1758202605020,0.03687,117700.0,117690.0,0.40803776]
[1758202605216,0.39767,117700.0,117690.0,0.40803776]
[1758202605422,0.39767,117700.0,117690.0,1.21131776]
[1758202605624,0.39767,117700.0,117690.0,0.81653]
[1758202606019,0.39767,117700.0,117690.0,1.21131776]
[1758202606223,0.03687,117700.0,117690.0,1.21131776]
[1758202606430,0.001,117700.0,117690.0,2.21690552]
[1758202607030,0.01465,117700.0,117690.0,2.21690552]
[1758202607231,0.01465,117700.0,117690.0,1.42733]
[1758202607437,0.01465,117700.0,117690.0,2.21690552]
[1758202607628,0.01465,117700.0,117690.0,1.46131776]
[1758202607934,0.01465,117700.0,117690.0,1.42733]
[1758202608138,0.01465,117700.0,117690.0,2.21690552]
[1758202608732,0.01465,117700.0,117690.0,2.21718552]
[1758202608929,0.01465,117700.0,117690.0,1.06681]
[1758202609130,0.03687,117700.0,117690.0,1.06705]
[1758202609331,0.03687,117700.0,117690.0,1.46183776]
[1758202609523,0.01465,117700.0,117690.0,1.85662552]
[1758202609728,0.01465,117700.0,117690.0,2.21742552]
[1758202609929,0.001,117700.0,117690.0,2.21742552]
[1758202610229,0.01465,117700.0,117690.0,2.21742552]
[1758202610431,0.03687,117700.0,117690.0,1.46207776]
[1758202610831,0.03687,117700.0,117690.0,0.65803776]
[1758202611036,0.39767,117700.0,117690.0,0.01325]
[1758202611231,1.04245776,117700.0,117690.0,0.81737]
[1758202611442,0.64767,117700.0,117690.0,0.81737]
[1758202611638,0.64767,117700.0,117690.0,0.01325]
[1758202611836,0.03587,117690.0,117680.0,0.02025716]
[1758202612030,0.03587,117680.0,117670.0,0.0001]
[1758202612340,0.39667,117680.0,117670.0,0.81733]
[1758202612541,0.03587,117680.0,117670.0,0.81733]
[1758202612741,0.03587,117680.0,117670.0,1.21211776]
[1758202613135,0.03587,117680.0,117670.0,1.21203776]
[1758202613534,0.39667,117680.0,117670.0,1.21203776]
[1758202614038,0.37445,117690.0,117670.0,1.82283776]
[1758202614342,0.39667,117690.0,117680.0,0.40803776]
[1758202614529,0.03587,117690.0,117680.0,1.21239776]
[1758202614935,0.01365,117690.0,117680.0,1.21239776]
[1758202615135,0.03587,117690.0,117680.0,1.21239776]
[1758202615339,0.39667,117690.0,117680.0,0.01325]
[1758202615640,0.39667,117690.0,117680.0,1.21239776]
[1758202616042,0.39667,117690.0,117680.0,0.81753]
[1758202616241,0.39667,117690.0,117680.0,1.21231776]
[1758202616442,0.39667,117690.0,117680.0,1.21243776]
[1758202616739,0.39667,117690.0,117680.0,0.01325]
[1758202617038,0.03587,117680.0,117670.0,0.0001]
[1758202617237,0.03587,117670.0,117660.0,0.0001]
[1758202617437,0.03587,117660.0,117650.0,0.0001]
[1758202617641,0.03577,117650.0,117640.0,0.80549]
[1758202617835,0.03577,117650.0,117640.0,1.20027776]
[1758202618439,0.03577,117650.0,117640.0,0.80549]
[1758202618634,0.03577,117650.0,117640.0,1.20027776]
[1758202619038,0.01375,117660.0,117640.0,1.81107776]
[1758202619236,0.01375,117660.0,117650.0,0.40819776]
[1758202619437,0.03497,117660.0,117650.0,0.40819776]
[1758202620240,0.03456,117650.0,117640.0,0.40829776]
[1758202620439,0.03456,117640.0,117630.0,0.0001]
[1758202620640,0.01284,117630.0,117620.0,1.56112776]
[1758202620946,0.03466,117640.0,117630.0,0.01341]
[1758202621141,0.39536,117640.0,117630.0,0.40819776]
[1758202621340,0.03456,117640.0,117630.0,0.40819776]
[1758202621640,0.01284,117640.0,117630.0,1.01899776]
[1758202621945,0.03456,117640.0,117630.0,0.40819776]
[1758202622344,0.01284,117640.0,117630.0,0.40819776]
[1758202622541,0.01284,117640.0,117630.0,1.05298552]
[1758202622738,0.37374,117650.0,117630.0,1.50713922]
[1758202622939,0.37374,117650.0,117640.0,1.20094776]
[1758202623140,0.37364,117650.0,117640.0,1.20094776]
[1758202623444,0.01375,117660.0,117650.0,0.01341]
[1758202623643,0.37374,117670.0,117650.0,0.40819776]
[1758202623845,0.79024776,117670.0,117660.0,0.01341]
[1758202624145,0.79024776,117670.0,117650.0,0.40829776]
[1758202624146,0.01284,117660.0,117650.0,0.40829776]
[1758202624344,0.37374,117670.0,117650.0,0.40819776]
[1758202624646,0.0001,117670.0,117660.0,1.95665552]
[1758202624840,0.01294,117680.0,117670.0,0.01341]
[1758202625038,0.39536,117680.0,117670.0,0.40819776]
[1758202625647,0.37374,117690.0,117670.0,0.40819776]
[1758202625841,0.37374,117690.0,117680.0,1.21238535]
[1758202626044,0.37364,117690.0,117680.0,1.21238535]
[1758202626246,0.39536,117690.0,117680.0,1.21238535]
[1758202627052,0.37364,117690.0,117680.0,1.21238535]
[1758202627346,0.37364,117690.0,117680.0,0.40558535]
[1758202627546,0.39536,117690.0,117680.0,0.01341]
[1758202627753,0.39536,117690.0,117680.0,1.21222535]
[1758202628055,0.03456,117690.0,117680.0,1.21222535]
[1758202628553,0.39536,117690.0,117680.0,0.01341]
[1758202628744,0.39536,117690.0,117680.0,0.81993]
[1758202629048,0.03456,117690.0,117680.0,0.81993]
[1758202629753,0.03456,117690.0,117680.0,1.21210535]
[1758202630051,0.39536,117690.0,117680.0,0.40558535]
[1758202630440,0.39536,117690.0,117680.0,1.21142535]
[1758202630846,0.39536,117690.0,117680.0,0.81925]
[1758202631347,0.39536,117690.0,117680.0,0.40558535]
[1758202631552,0.39536,117690.0,117680.0,0.01341]
[1758202631753,0.03456,117680.0,117670.0,0.40568535]
[1758202631953,0.01284,117680.0,117670.0,0.40558535]
[1758202632148,0.03456,117680.0,117670.0,0.40558535]
[1758202632451,0.03456,117680.0,117670.0,1.21122535]
[1758202633050,0.01284,117680.0,117670.0,1.21122535]
[1758202633966,0.01284,117680.0,117670.0,1.21094535]
[1758202634850,0.01284,117680.0,117670.0,1.57174535]
[1758202635051,0.01284,117680.0,117670.0,1.21094535]
[1758202636754,0.01294,117690.0,117670.0,1.83012535]
[1758202637058,0.01294,117690.0,117680.0,0.40558535]
[1758202637350,0.03456,117690.0,117680.0,0.40558535]
[1758202637857,0.37374,117700.0,117680.0,0.40558535]
[1758202638154,0.39546,117700.0,117690.0,1.19617535]
[1758202638353,0.39536,117700.0,117690.0,1.19617535]
[1758202638556,0.39536,117700.0,117690.0,0.40558535]
[1758202638745,0.39536,117700.0,117690.0,0.81717]
[1758202638957,0.39536,117700.0,117690.0,0.01341]
[1758202639159,0.39536,117700.0,117690.0,1.20918535]
[1758202639951,0.39536,117700.0,117690.0,0.81701]
[1758202640148,0.39536,117700.0,117690.0,1.20918535]
[1758202640652,0.39636,117700.0,117690.0,1.20918535]
[1758202641657,0.39636,117700.0,117690.0,0.01341]
[1758202641959,0.39636,117700.0,117690.0,1.20858535]
[1758202643466,0.39636,117700.0,117690.0,0.40558535]
[1758202643665,0.39636,117700.0,117690.0,1.20838535]
[1758202643866,0.39636,117700.0,117690.0,1.20810535]
[1758202644073,0.03556,117700.0,117690.0,1.20810535]
[1758202644267,0.01384,117700.0,117690.0,1.20830535]
[1758202644458,0.01384,117700.0,117690.0,1.81910535]
[1758202644659,0.01384,117700.0,117690.0,1.01638535]
[1758202644862,0.01384,117700.0,117690.0,1.81918535]
[1758202646169,0.01384,117700.0,117690.0,1.45814535]
[1758202646571,0.001,117700.0,117690.0,1.45814535]
[1758202646966,0.001,117700.0,117690.0,1.81894535]
[1758202647163,0.03556,117700.0,117690.0,0.01341]
[1758202647473,0.03556,117700.0,117690.0,1.20806535]
[1758202648569,0.39636,117700.0,117690.0,0.81629]
[1758202648772,0.03456,117690.0,117680.0,0.0001]
[1758202648974,0.39536,117690.0,117680.0,0.81705]
[1758202649176,0.01284,117680.0,117670.0,0.03306711]
[1758202649480,0.39536,117680.0,117670.0,1.22878246]
[1758202650375,0.39536,117680.0,117670.0,1.22894246]
[1758202651483,0.39536,117680.0,117670.0,1.22914246]
[1758202651874,0.03456,117680.0,117670.0,0.42514246]
[1758202652079,0.03456,117680.0,117670.0,1.22914246]
[1758202652383,0.64536,117680.0,117670.0,0.83676711]
[1758202652982,0.03516,117670.0,117660.0,0.01351]
[1758202653173,0.39596,117670.0,117660.0,0.81693]
[1758202653780,0.03516,117670.0,117660.0,0.81693]
[1758202654078,0.03516,117670.0,117660.0,1.21010535]
[1758202654382,0.03516,117670.0,117660.0,1.20986535]
[1758202655482,0.37374,117680.0,117660.0,1.20986535]
[1758202655782,0.3951,117680.0,117670.0,0.40558535]